Workbook

Sheet Лист1
A1: Приложение № 2 к муниципальной программе Североуральского городского округа «Развитие жилищно-коммунального хозяйства и транспортного обслуживания населения, повышение энергетической эффективности и охрана окружающей среды в Североуральском городском округе» на 2014-2020 годы
A2: План мероприятий
A3: по выполнению муниципальной программы Североуральского городского округа
A4: «Развитие жилищно-коммунального хозяйства и транспортного обслуживания населения,
A5: повышение энергетической эффективности и охрана окружающей среды в Североуральском городском округе» на 2014-2020 годы
A7: № строки | B7: Наименование мероприятия/ Источники расходов на финансирование | C7: Объем расходов на выполнение мероприятия за счет всех источников ресурсного обеспечения, тыс. руб. | K7: Номер строки целевых показателей, на достижение которых направлены мероприятия
C8: Всего | D8: 2014 год | E8: 2015 год | F8: 2016 год | G8: 2017 год | H8: 2018 год | I8: 2019 год | J8: 2020 год
B9: 1 | C9: 2 | D9: 3 | E9: 4 | F9: 5 | G9: 6 | H9: 7 | I9: 8 | J9: 9 | K9: 10
B10: ВСЕГО по муниципальной программе, в том числе: | C10: =SUM(C11:C13) -> 1153299.148 | D10: =SUM(D11:D13) -> 283826.9 | E10: =SUM(E11:E13) -> 348239.16 | F10: =SUM(F11:F13) -> 216622.5876 | G10: 81342.9 | H10: 81381 | I10: 64762.4 | J10: 77124.2 | K10: Х
B11: местный бюджет | C11: =SUM(D11:J11) -> 638267.4334 | D11: =SUM(D15+D19) -> 92792.8 | E11: =SUM(E15+E19) -> 126635.26 | F11: 117147.5734 | G11: 80358.4 | H11: 80408.1 | I11: 63801.1 | J11: 77124.2
B12: областной бюджет | C12: =SUM(D12:J12) -> 328716.4513 | D12: =SUM(D16+D20) -> 109216.1 | E12: =SUM(E16+E20) -> 135104.3 | F12: =SUM(F16+F20) -> 81477.35126 | G12: =SUM(G16+G20) -> 984.5 | H12: =SUM(H16+H20) -> 972.9 | I12: =SUM(I16+I20) -> 961.3 | J12: =SUM(J16+J20) -> 0
B13: федеральный бюджет | C13: =SUM(D13:J13) -> 186315.2629 | D13: =SUM(D21+D17) -> 81818 | E13: =SUM(E21+E17) -> 86499.6 | F13: 17997.66293 | G13: 0 | H13: 0 | I13: 0 | J13: 0
B14: Капитальные вложения | C14: =SUM(C15:C17) -> 680027.9847 | D14: =SUM(D15:D17) -> 232761.9 | E14: =SUM(E15:E17) -> 271669 | F14: 133207.8847 | G14: 16954 | H14: 16727.1 | I14: 0 | J14: 8708.1 | K14: Х
B15: местный бюджет | C15: =SUM(D15:J15) -> 172236.2705 | D15: =D29+D119+D187+D207+D237+D270+D339+D358 -> 44727.8 | E15: 50411.3 | F15: 34707.97051 | G15: 16954 | H15: 16727.1 | I15: 0 | J15: 8708.1
B16: областной бюджет | C16: =SUM(D16:J16) -> 321476.4513 | D16: =D120+D208+D30 -> 106216.1 | E16: =E120+E208+E30 -> 134758.1 | F16: =F120+F208 -> 80502.25126 | G16: =G120+G208 -> 0 | H16: =H120+H208 -> 0 | I16: =I120+I208 -> 0 | J16: =J120+J208 -> 0
B17: федеральный бюджет | C17: =SUM(D17:J17) -> 186315.2629 | D17: =D209 -> 81818 | E17: =E209 -> 86499.6 | F17: 17997.66293 | G17: 0 | H17: 0 | I17: 0 | J17: 0
B18: Прочие нужды | C18: =SUM(C19:C20) -> 473271.1629 | D18: =SUM(D19:D20) -> 51065 | E18: =SUM(E19:E20) -> 76570.16 | F18: 83414.70288 | G18: 64388.9 | H18: 64653.9 | I18: 64762.4 | J18: 68416.1 | K18: Х
B19: местный бюджет | C19: =SUM(D19:J19) -> 466031.1629 | D19: =D44+D165+D196+D225+D279+D348+D374+D246+D327 -> 48065 | E19: 76223.96 | F19: 82439.60288 | G19: 63404.4 | H19: 63681 | I19: 63801.1 | J19: 68416.1
B20: областной бюджет | C20: =SUM(D20:J20) -> 7240 | D20: =SUM(D166+D373+D45) -> 3000 | E20: 346.2 | F20: 975.1 | G20: 984.5 | H20: 972.9 | I20: 961.3 | J20: 0
B21: федеральный бюджет | C21: =SUM(D21:J21) -> 0 | D21: 0 | E21: =E166 -> 0 | F21: 0 | G21: 0 | H21: 0 | I21: 0 | J21: 0
A22: Подпрограмма 1: Комплексное благоустройство территории Североуральского городского округа
B23: Всего по подпрограмме 1, | C23: =SUM(C25+C26) -> 213419.0414 | D23: =SUM(D25:D26) -> 25725.2 | E23: 29762.2 | F23: 47222.84145 | G23: 29093.5 | H23: 28775.2 | I23: 25016.8 | J23: 27823.3 | K23: Х
B24: в том числе:
B25: местный бюджет | C25: =SUM(D25:J25) -> 204713.6414 | D25: =SUM(D29+D44) -> 24510.5 | E25: 26102.3 | F25: 46247.74145 | G25: 28130 | H25: 27823.3 | I25: 24076.5 | J25: 27823.3
B26: областной бюджет | C26: =SUM(D26:J26) -> 8705.4 | D26: =SUM(D30+D45) -> 1214.7 | E26: 3659.9 | F26: 975.1 | G26: 963.5 | H26: 951.9 | I26: 940.3 | J26: 0
A27: 1. Капитальные вложения
B28: Всего по направлению «Капитальные вложения» всего, в том числе | C28: =SUM(D28:J28) -> 20003.7 | D28: =SUM(D29+D30) -> 3536.4 | E28: =SUM(E29+E30) -> 3674.7 | F28: =SUM(F29) -> 4819 | G28: =SUM(G29) -> 480 | H28: =SUM(H29) -> 3746.8 | I28: =SUM(I29) -> 0 | J28: =SUM(J29) -> 3746.8 | K28: Х
B29: местный бюджет | C29: =SUM(D29:J29) -> 15475.3 | D29: =SUM(D40) -> 2321.7 | E29: =SUM(E40) -> 361 | F29: =SUM(F40) -> 4819 | G29: 480 | H29: 3746.8 | I29: 0 | J29: 3746.8
B30: областной бюджет | C30: =SUM(D30:J30) -> 4528.4 | D30: =SUM(D37) -> 1214.7 | E30: =SUM(E37) -> 3313.7 | F30: 0 | G30: 0 | H30: 0 | I30: 0 | J30: 0
A31: 1.1. Бюджетные инвестиции в объекты капитального строительства
B32: Бюджетные инвестиции в объекты капитального строительства всего, в том числе | C32: 0 | D32: 0 | E32: 0 | F32: 0 | G32: 0 | H32: 0 | I32: 0 | J32: 0 | K32: Х
B33: местный бюджет | C33: 0 | D33: 0 | E33: 0 | F33: 0 | G33: 0 | H33: 0 | I33: 0 | J33: 0
A34: 1.2. Иные капитальные вложения
B35: Всего | C35: =SUM(D35:J35) -> 20003.7 | D35: =SUM(D36:D37) -> 3536.4 | E35: =SUM(E36:E37) -> 3674.7 | F35: 4819 | G35: 480 | H35: 3746.8 | I35: 0 | J35: 3746.8 | K35: Х
B36: местный бюджет | C36: =SUM(D36:J36) -> 15475.3 | D36: =SUM(D40) -> 2321.7 | E36: =SUM(E40) -> 361 | F36: 4819 | G36: 480 | H36: 3746.8 | I36: 0 | J36: 3746.8
B37: областной бюджет | C37: =SUM(D37:J37) -> 4528.4 | D37: =SUM(D41) -> 1214.7 | E37: =SUM(E41) -> 3313.7 | F37: 0 | G37: 0 | H37: 0 | I37: 0 | J37: 0
A38: Мероприятие 1 Благоустройство дворовых территорий Североуральского городского округа
B39: Всего, из них | C39: =SUM(D39:J39) -> 20003.7 | D39: =D40+D41 -> 3536.4 | E39: =SUM(E40:E41) -> 3674.7 | F39: =SUM(F40) -> 4819 | G39: =SUM(G40) -> 480 | H39: =SUM(H40) -> 3746.8 | I39: =SUM(I40) -> 0 | J39: =SUM(J40) -> 3746.8 | K39: 4
B40: местный бюджет | C40: =SUM(D40:J40) -> 15475.3 | D40: 2321.7 | E40: 361 | F40: 4819 | G40: 480 | H40: 3746.8 | I40: 0 | J40: 3746.8
B41: областной бюджет | C41: =D41+E41+F41+G41+H41+I41+J41 -> 4528.4 | D41: 1214.7 | E41: 3313.7 | F41: 0 | G41: 0 | H41: 0 | I41: 0 | J41: 0
A42: 3. Прочие нужды
B43: Всего по направлению «Прочие нужды», всего, в том числе: | C43: =SUM(D43:J43) -> 193415.3414 | D43: =SUM(D44:D45) -> 22188.8 | E43: 26087.5 | F43: 42403.84145 | G43: 28613.5 | H43: 25028.4 | I43: 25016.8 | J43: 24076.5 | K43: Х | N43: =SUM(E40+E48) -> 797
B44: местный бюджет | C44: =SUM(D44:J44) -> 189238.3415 | D44: =SUM(D55+D64+D67+D70+D48+D111) -> 22188.8 | E44: =SUM(E55+E64+E67+E70+E48+E111) -> 25741.3 | F44: =SUM(F55+F64+F67+F70+F48+F111) -> 41428.74145 | G44: 27650 | H44: 24076.5 | I44: 24076.5 | J44: 24076.5
B45: областной бюджет | C45: =SUM(D45:J45) -> 4177 | D45: =SUM(D71) -> 0 | E45: =SUM(E71) -> 346.2 | F45: =SUM(F112) -> 975.1 | G45: =SUM(G112) -> 963.5 | H45: =SUM(H112) -> 951.9 | I45: =SUM(I112) -> 940.3 | J45: =SUM(J112) -> 0
A46: Мероприятие 1 Благоустройство дворовых территорий Североуральского городского округа
B47: Всего, из них | C47: =SUM(D47:J47) -> 3427.9 | D47: =D48+D49 -> 310.9 | E47: =SUM(E48) -> 436 | F47: 2681 | G47: 0 | H47: 0 | I47: 0 | J47: 0 | K47: 4
B48: местный бюджет | C48: =SUM(D48:J48) -> 3427.9 | D48: 310.9 | E48: 436 | F48: 2681 | G48: 0 | H48: =SUM(G48) -> 0 | I48: =SUM(H48) -> 0 | J48: =SUM(I48) -> 0
B49: областной бюджет | C49: =D49+E49+F49+G49+H49+I49+J49 -> 0 | D49: 0 | E49: 0 | F49: 0 | G49: 0 | H49: 0 | I49: 0 | J49: 0
A50: Мероприятие 2 Благоустройство парков и скверов в городе Североуральске
B51: Всего, из них | C51: =SUM(D51:J51) -> 0 | D51: =D52+D53 -> 0 | E51: =SUM(E52) -> 0 | F51: 0 | G51: 0 | H51: 0 | I51: 0 | J51: 0 | K51: 5
B52: местный бюджет | C52: =SUM(D52:J52) -> 0 | D52: 0 | E52: 0 | F52: 0 | G52: 0 | H52: =SUM(G52) -> 0 | I52: =SUM(H52) -> 0 | J52: =SUM(I52) -> 0
A53: Мероприятие 3- Уличное освещение
B54: Всего, в том числе: | C54: =SUM(D54:J54) -> 95351.6908 | D54: =SUM(D55) -> 12001 | E54: 12600 | F54: 18150.6908 | G54: 13000 | H54: 13200 | I54: 13200 | J54: 13200 | K54: 8, 9
B55: местный бюджет | C55: =SUM(D55:J55) -> 95351.6908 | D55: =SUM(D58+D61) -> 12001 | E55: 12600 | F55: 18150.6908 | G55: 13000 | H55: 13200 | I55: 13200 | J55: 13200
A56: - Обеспечение бесперебойной подачи электроэнергии
B57: Всего: | C57: =SUM(D57:J57) -> 63704.7908 | D57: =SUM(D58) -> 8644.1 | E57: =SUM(E58) -> 8800 | F57: 10660.6908 | G57: 8000 | H57: 9200 | I57: 9200 | J57: 9200 | K57: 8, 9
B58: местный бюджет | C58: =SUM(D58:J58) -> 63704.7908 | D58: 8644.1 | E58: 8800 | F58: 10660.6908 | G58: 8000 | H58: 9200 | I58: 9200 | J58: 9200
A59: - Содержание и ремонт сетей уличного освещения
B60: Всего: | C60: =SUM(D60:J60) -> 31646.9 | D60: =SUM(D61) -> 3356.9 | E60: =SUM(E61) -> 3800 | F60: 7490 | G60: 5000 | H60: 4000 | I60: 4000 | J60: 4000 | K60: 8, 9
B61: местный бюджет | C61: =SUM(D61:J61) -> 31646.9 | D61: 3356.9 | E61: 3800 | F61: 7490 | G61: 5000 | H61: 4000 | I61: 4000 | J61: 4000
A62: Мероприятие 4 - Озеленение (цветники, валка сухих деревьев)
B63: Всего, из них | C63: =SUM(D63:J63) -> 21870.24386 | D63: =SUM(D64) -> 2890.9 | E63: 2148 | F63: 3923.84386 | G63: 3000 | H63: 3302.5 | I63: 3302.5 | J63: 3302.5 | K63: 11
B64: местный бюджет | C64: =SUM(D64:J64) -> 21870.24386 | D64: 2890.9 | E64: 2148 | F64: 3923.84386 | G64: 3000 | H64: 3302.5 | I64: =SUM(H64) -> 3302.5 | J64: =SUM(I64) -> 3302.5
A65: Мероприятие 5 - Организация и содержание мест захоронения
B66: Всего, из них | C66: =SUM(D66:J66) -> 19771.84212 | D66: =SUM(D67) -> 2263.1 | E66: 2306.9 | F66: 3619.44212 | G66: 3000 | H66: 2860.8 | I66: 2860.8 | J66: 2860.8 | K66: 16
B67: местный бюджет | C67: =SUM(D67:J67) -> 19771.84212 | D67: 2263.1 | E67: 2306.9 | F67: 3619.44212 | G67: 3000 | H67: 2860.8 | I67: =SUM(H67) -> 2860.8 | J67: =SUM(I67) -> 2860.8
A68: Мероприятие 6 - Прочие мероприятия по благоустройству
B69: Всего, в том числе: | C69: =SUM(D69:J69) -> 48216.06467 | D69: =SUM(D70:D71) -> 4722.9 | E69: =SUM(E70:E71) -> 8596.6 | F69: 12256.96467 | G69: 8500 | H69: 4713.2 | I69: 4713.2 | J69: 4713.2 | K69: 5,6,11,13,14,15,17
B70: местный бюджет | C70: =SUM(D70:J70) -> 47869.86467 | D70: =SUM(D74+D77+D84+D87+D96+D90+D99+D105+D93+D102+D80) -> 4722.9 | E70: =SUM(E74+E77+E84+E87+E96+E90+E99+E105+E93+E102+E80+E108) -> 8250.4 | F70: =SUM(F74+F77+F84+F87+F96+F90+F99+F105+F93+F102+F80+F108) -> 12256.96467 | G70: 8500 | H70: 4713.2 | I70: 4713.2 | J70: 4713.2
B71: областной бюджет | C71: =SUM(D71:J71) -> 346.2 | D71: =SUM(D81) -> 0 | E71: =SUM(E81) -> 346.2 | F71: 0 | G71: 0 | H71: 0 | I71: 0 | J71: 0
A72: - Содержание памятников
B73: Всего: | C73: =SUM(C74) -> 2881.40006 | D73: 369.2 | E73: 404.9 | F73: 384.30006 | G73: 400 | H73: 441 | I73: 441 | J73: 441 | K73: 17
B74: местный бюджет | C74: =SUM(D74:J74) -> 2881.40006 | D74: 369.2 | E74: 404.9 | F74: 384.30006 | G74: 400 | H74: 441 | I74: =SUM(H74) -> 441 | J74: =SUM(I74) -> 441
A75: - Проведение комплекса профилактических работ по уходу за объектами благоустройства
B76: Всего: | C76: =SUM(C77) -> 7713.0138 | D76: =SUM(D77) -> 1098.7 | E76: =SUM(E77) -> 976.1 | F76: 999.8138 | G76: 1000 | H76: 1212.8 | I76: 1212.8 | J76: 1212.8 | K76: 5
B77: местный бюджет | C77: =SUM(D77:J77) -> 7713.0138 | D77: 1098.7 | E77: 976.1 | F77: 999.8138 | G77: 1000 | H77: 1212.8 | I77: =SUM(H77) -> 1212.8 | J77: =SUM(I77) -> 1212.8
A78: - Регулирование численности безнадзорных животных
B79: Всего: | C79: =SUM(D79:J79) -> 1677.2 | D79: =SUM(D80:D81) -> 500 | E79: =SUM(E80:E81) -> 1177.2 | F79: 0 | G79: 0 | H79: 0 | I79: 0 | J79: 0 | K79: 13
B80: местный бюджет | C80: =SUM(D80:J80) -> 1331 | D80: 500 | E80: 831 | F80: 0 | G80: 0 | H80: 0 | I80: =SUM(H80) -> 0 | J80: =SUM(I80) -> 0
B81: областной бюджет | C81: =SUM(D81:J81) -> 346.2 | E81: 346.2
A82: - Содержание биоямы (скотомогильник)
B83: Всего: | C83: =SUM(C84) -> 838.62912 | D83: =SUM(D84) -> 116.1 | E83: =SUM(E84) -> 69.3 | F83: 77.02912 | G83: 80 | H83: 165.4 | I83: 165.4 | J83: 165.4 | K83: 15
B84: местный бюджет | C84: =SUM(D84:J84) -> 838.62912 | D84: 116.1 | E84: 69.3 | F84: 77.02912 | G84: 80 | H84: 165.4 | I84: =SUM(H84) -> 165.4 | J84: =SUM(I84) -> 165.4
A85: - Обустройство и эксплуатация новогодних городков
B86: Всего: | C86: =SUM(C87) -> 16915.5 | D86: =SUM(D87) -> 1685.5 | E86: =SUM(E87) -> 2669.2 | F86: 2900 | G86: 2600 | H86: 2353.6 | I86: 2353.6 | J86: 2353.6 | K86: 5
B87: местный бюджет | C87: =SUM(D87:J87) -> 16915.5 | D87: 1685.5 | E87: 2669.2 | F87: 2900 | G87: 2600 | H87: 2353.6 | I87: =SUM(H87) -> 2353.6 | J87: =SUM(I87) -> 2353.6
A88: - Приобретение декоративного освещения для улиц города Североуральска
B89: Всего: | C89: =SUM(C90) -> 3174.4 | D89: =SUM(D90) -> 773.4 | E89: =SUM(E90) -> 1701 | F89: 0 | G89: 700 | H89: 0 | I89: 0 | J89: 0 | K89: 5
B90: местный бюджет | C90: =SUM(D90:J90) -> 3174.4 | D90: 773.4 | E90: 1701 | F90: 0 | G90: 700 | H90: 0 | I90: =SUM(H90) -> 0 | J90: =SUM(I90) -> 0
A91: - Обслуживание декоративного освещения для улиц города Североуральска
B92: Всего: | C92: =SUM(C93) -> 300 | D92: =SUM(D93) -> 0 | E92: =SUM(E93) -> 0 | F92: 0 | G92: 300 | H92: 0 | I92: 0 | J92: 0 | K92: 5
B93: местный бюджет | C93: =SUM(D93:J93) -> 300 | D93: 0 | E93: 0 | F93: 0 | G93: 300 | H93: 0 | I93: =SUM(H93) -> 0 | J93: =SUM(I93) -> 0
A94: - Акарицидная обработка общественных мест
B95: Всего: | C95: =SUM(C96) -> 1384.2899 | D95: =SUM(D96) -> 92 | E95: =SUM(E96) -> 99.9 | F95: 99.9899 | G95: 100 | H95: 330.8 | I95: 330.8 | J95: 330.8 | K95: 14
B96: местный бюджет | C96: =SUM(D96:J96) -> 1384.2899 | D96: 92 | E96: 99.9 | F96: 99.9899 | G96: 100 | H96: 330.8 | I96: =SUM(H96) -> 330.8 | J96: =SUM(I96) -> 330.8
A97: - Приобретение грунта плодородного (земли садовой)
B98: Всего: | C98: =SUM(C99) -> 916.8 | D98: =SUM(D99) -> 88 | E98: =SUM(E99) -> 0 | F98: 150 | G98: 50 | H98: 209.6 | I98: 209.6 | J98: 209.6 | K98: 11
B99: местный бюджет | C99: =SUM(D99:J99) -> 916.8 | D99: 88 | E99: 0 | F99: 150 | G99: 50 | H99: 209.6 | I99: =SUM(H99) -> 209.6 | J99: =SUM(I99) -> 209.6
A100: - Приобретение и установка металлических урн и скамеек
B101: Всего: | C101: =SUM(C102) -> 1710.25802 | D101: =SUM(D102) -> 0 | E101: =SUM(E102) -> 0 | F101: 1710.25802 | G101: 0 | H101: 0 | I101: 0 | J101: 0 | K101: 6
B102: местный бюджет | C102: =SUM(D102:J102) -> 1710.25802 | D102: 0 | E102: 0 | F102: 1710.25802 | G102: 0 | H102: 0 | I102: =SUM(H102) -> 0 | J102: =SUM(I102) -> 0
A103: - Благоустройство мест общего пользования территории Североуральского городского округа
B104: Всего: | C104: =SUM(C105) -> 10704.57377 | D104: =SUM(D105) -> 0 | E104: =SUM(E105) -> 1499 | F104: 5935.57377 | G104: 3270 | H104: 0 | I104: 0 | J104: 0 | K104: 5
B105: местный бюджет | C105: =SUM(D105:J105) -> 10704.57377 | D105: 0 | E105: 1499 | F105: 5935.57377 | G105: 3270 | H105: 0 | I105: =SUM(H105) -> 0 | J105: =SUM(I105) -> 0
A106: - Приобретение и установка остановочных комплексов на территории Североуральского городского округа
B107: Всего: | C107: =SUM(C108) -> 0 | D107: =SUM(D108) -> 0 | E107: =SUM(E108) -> 0 | F107: 0 | G107: 0 | H107: 0 | I107: 0 | J107: 0 | K107: 5
B108: местный бюджет | C108: =SUM(D108:J108) -> 0 | D108: 0 | E108: 0 | F108: 0 | G108: 0 | H108: 0 | I108: =SUM(H108) -> 0 | J108: =SUM(I108) -> 0
A109: Мероприятие 7 - Регулирование численности безнадзорных животных
B110: Всего, из них | C110: =SUM(D110:J110) -> 4777.6 | D110: =SUM(D111:D112) -> 0 | E110: =SUM(E111:E112) -> 0 | F110: 1771.9 | G110: 1113.5 | H110: 951.9 | I110: 940.3 | J110: 0 | K110: 13
B111: местный бюджет | C111: =SUM(D111:J111) -> 946.8 | D111: 0 | E111: 0 | F111: 796.8 | G111: 150 | H111: 0 | I111: =SUM(H111) -> 0 | J111: =SUM(I111) -> 0
B112: областной бюджет | C112: =SUM(D112:J112) -> 3830.8 | E112: 0 | F112: 975.1 | G112: 963.5 | H112: 951.9 | I112: 940.3
A113: Подпрограмма 2: Муниципальная программа по энергосбережению и повышению энергетической эффективности объектов Североуральского городского округа
B114: Всего по подпрограмме 2, в том числе | C114: =SUM(D114:J114) -> 72612.56781 | D114: =SUM(D115:D116) -> 9165.5 | E114: 2961.6 | F114: 15455.86781 | G114: 16473 | H114: 14980.3 | I114: 2000 | J114: 11576.3 | K114: Х
B115: местный бюджет | C115: =SUM(D115:J115) -> 66268.16781 | D115: =SUM(D119+D165) -> 2821.1 | E115: =SUM(E119+E165) -> 2961.6 | F115: =F119+F165 -> 15455.86781 | G115: =SUM(G119+G165) -> 16473 | H115: 14980.3 | I115: 2000 | J115: 11576.3
B116: областной бюджет | C116: =SUM(D116:J116) -> 6344.4 | D116: =SUM(D120+D166) -> 6344.4 | E116: =SUM(E120+E166) -> 0 | F116: =SUM(F120+F166) -> 0 | G116: 0 | H116: 0 | I116: 0 | J116: 0
A117: 1. Капитальные вложения
B118: Всего по направлению «Капитальные вложения», всего, в том числе | C118: =SUM(C119:C120) -> 53530.8092 | D118: 4173.6 | E118: 1420 | F118: 14122.6092 | G118: 15873 | H118: 12980.3 | I118: 0 | J118: 4961.3 | K118: Х
B119: местный бюджет | C119: =SUM(D119:J119) -> 50186.4092 | D119: =SUM(D153+D123) -> 829.2 | E119: 1420 | F119: 14122.6092 | G119: 15873 | H119: 12980.3 | I119: 0 | J119: 4961.3
B120: областной бюджет | C120: =SUM(D120:J120) -> 3344.4 | D120: 3344.4 | E120: 0 | F120: 0 | G120: 0 | H120: 0 | I120: 0 | J120: 0
A121: 1.1. Бюджетные инвестиции в объекты капитального строительства
B122: Бюджетные инвестиции в объекты капитального строительства всего, в том числе | C122: =SUM(D122:J122) -> 25014.6092 | D122: =SUM(D123:D124) -> 0 | E122: =SUM(E123:E124) -> 0 | F122: 14122.6092 | G122: 2873 | H122: 8019 | I122: 0 | J122: 0 | K122: Х
B123: местный бюджет | C123: =SUM(D123:J123) -> 25014.6092 | D123: =SUM(D127+D139+D142+D146+D149) -> 0 | E123: 0 | F123: 14122.6092 | G123: 2873 | H123: 8019 | I123: 0 | J123: 0
B124: областной бюджет | C124: =SUM(D124:J124) -> 0 | D124: =SUM(D128+D143+D150) -> 0 | E124: =SUM(E128+E143+E150) -> 0 | F124: 0 | G124: 0 | H124: 0 | I124: 0 | J124: 0
A125: Мероприятие 3 - Закупка и установка осветительного оборудования с заменой неэффективного на энергосберегающее, в том числе замена ламп накаливания на энергосберегающие, строительство, модернизация сетей уличного освещения, проектно-сметные работы, экспертиза проектно-сметной документации
B126: Всего, из них | C126: =SUM(C127:C128) -> 15203 | D126: =SUM(D127:D128) -> 0 | E126: =SUM(E127:E128) -> 0 | F126: 12330 | G126: 2873 | H126: 0 | I126: 0 | J126: 0 | K126: 28
B127: местный бюджет | C127: =SUM(D127:J127) -> 15203 | D127: 0 | E127: 0 | F127: =SUM(F135+F131) -> 12330 | G127: =SUM(G135+G131) -> 2873 | H127: 0 | I127: =SUM(H127) -> 0 | J127: 0
B128: областной бюджет | C128: =SUM(D128:J128) -> 0 | D128: 0 | E128: 0 | F128: 0 | G128: 0 | H128: 0 | I128: 0 | J128: 0
A129: - Разработка ПСД на строительство сетей уличного освещения микрорайона Южный
B130: Всего: | C130: =SUM(C131) -> 283.20066 | D130: 0 | E130: 0 | F130: 283.20066 | G130: 0 | H130: 0 | I130: 0 | J130: 0 | K130: 28
B131: местный бюджет | C131: =SUM(D131:J131) -> 283.20066 | D131: 0 | E131: 0 | F131: 283.20066 | G131: 0 | H131: 0 | I131: =SUM(H131) -> 0 | J131: =SUM(I131) -> 0
B132: областной бюджет | C132: =SUM(D132:J132) -> 0 | D132: 0 | E132: 0 | F132: 0 | G132: 0 | H132: 0 | I132: 0 | J132: 0
A133: - Строительство сетей уличного освещения микрорайона Южный
B134: Всего: | C134: =SUM(C135) -> 14919.79934 | D134: 0 | E134: 0 | F134: 12046.79934 | G134: 2873 | H134: 0 | I134: 0 | J134: 0 | K134: 28
B135: местный бюджет | C135: =SUM(D135:J135) -> 14919.79934 | D135: 0 | E135: 0 | F135: 12046.79934 | G135: 2873 | H135: 0 | I135: =SUM(H135) -> 0 | J135: =SUM(I135) -> 0
B136: областной бюджет | C136: =SUM(D136:J136) -> 0 | D136: 0 | E136: 0 | F136: 0 | G136: 0 | H136: 0 | I136: 0 | J136: 0
A137: Мероприятие 5 - Разработка, экспертиза проектно-сметной документации на строительство сетей водоснабжения в Североуральском городском округе
B138: Всего, из них | C138: =SUM(D138:J138) -> 0 | D138: =SUM(D139) -> 0 | E138: =SUM(E139) -> 0 | F138: 0 | G138: 0 | H138: 0 | I138: 0 | J138: 0 | K138: 31
B139: местный бюджет | C139: =SUM(D139:J139) -> 0 | D139: 0 | E139: 0 | F139: 0 | G139: 0 | H139: =SUM(G139) -> 0 | I139: =SUM(H139) -> 0 | J139: =SUM(I139) -> 0
A140: Мероприятие 6 - Строительство сетей водоснабжения в Североуральском городском округе
B141: Всего, из них | C141: =SUM(C142:C143) -> 0 | D141: =SUM(D142:D143) -> 0 | E141: =SUM(E142:E143) -> 0 | F141: 0 | G141: 0 | H141: 0 | I141: 0 | J141: 0 | K141: 32
B142: местный бюджет | C142: =SUM(D142:J142) -> 0 | D142: 0 | E142: 0 | F142: 0 | G142: 0 | H142: =SUM(G142) -> 0 | I142: 0 | J142: 0
B143: областной бюджет | C143: =SUM(D143:J143) -> 0 | D143: 0 | E143: 0 | F143: 0 | G143: 0 | H143: 0 | I143: 0 | J143: 0
A144: Мероприятие 7 - Разработка, экспертиза проектно-сметной документации на строительство котельных в Североуральском городском округе
B145: Всего, из них | C145: =SUM(D145:J145) -> 1792.6092 | D145: =SUM(D146) -> 0 | E145: =SUM(E146) -> 0 | F145: 1792.6092 | G145: 0 | H145: 0 | I145: 0 | J145: 0 | K145: 33
B146: местный бюджет | C146: =SUM(D146:J146) -> 1792.6092 | D146: 0 | E146: 0 | F146: 1792.6092 | G146: 0 | H146: =SUM(G146) -> 0 | I146: =SUM(H146) -> 0 | J146: =SUM(I146) -> 0
A147: Мероприятие 8 - Строительство котельных в Североуральском городском округе
B148: Всего, из них | C148: =SUM(C149:C150) -> 8019 | D148: =SUM(D149:D150) -> 0 | E148: =SUM(E149:E150) -> 0 | F148: 0 | G148: 0 | H148: 8019 | I148: 0 | J148: 0 | K148: 34
B149: местный бюджет | C149: =SUM(D149:J149) -> 8019 | D149: 0 | E149: 0 | F149: 0 | G149: 0 | H149: 8019 | I149: 0 | J149: =SUM(I149) -> 0
B150: областной бюджет | C150: =SUM(D150:J150) -> 0 | D150: 0 | E150: 0 | F150: 0 | G150: 0 | H150: =SUM(G150) -> 0 | I150: =SUM(H150) -> 0 | J150: =SUM(I150) -> 0
A151: 1.2. Иные капитальные вложения
B152: Всего, в том числе | C152: =SUM(C153:C154) -> 28516.2 | D152: 4173.6 | E152: 1420 | F152: 0 | G152: 13000 | H152: 4961.3 | I152: 0 | J152: 4961.3 | K152: Х
B153: местный бюджет | C153: =SUM(D153:J153) -> 25171.8 | D153: =SUM(D157+D161) -> 829.2 | E153: =SUM(E157+E161) -> 1420 | F153: 0 | G153: 13000 | H153: 4961.3 | I153: 0 | J153: 4961.3
B154: областной бюджет | C154: =SUM(D154:J154) -> 3344.4 | D154: =SUM(D158+D162) -> 3344.4 | E154: =SUM(E158+E162) -> 0 | F154: 0 | G154: 0 | H154: 0 | I154: 0 | J154: 0
A155: Мероприятие 1- Реконструкция, модернизация водопроводных сетей, сетей системы водоотведения с заменой (без замены) оборудования с более высоким КПД, установка регулируемого привода, реконструкция тепловых сетей, в том числе тепловых пунктов, котельных, капитальный ремонт систем коммунального хозяйства
B156: Всего, в том числе: | C156: =SUM(C157:C158) -> 25960 | D156: 3037.4 | E156: 0 | F156: 0 | G156: 13000 | H156: 4961.3 | I156: 0 | J156: 4961.3 | K156: 29
B157: местный бюджет | C157: =SUM(D157:J157) -> 23203.6 | D157: 281 | E157: 0 | F157: 0 | G157: 13000 | H157: 4961.3 | I157: 0 | J157: 4961.3
B158: областной бюджет | C158: =SUM(D158:J158) -> 2756.4 | D158: 2756.4 | E158: 0 | F158: 0 | G158: 0 | H158: =SUM(G158) -> 0 | I158: =SUM(H158) -> 0 | J158: =SUM(I158) -> 0
A159: Мероприятие 3 - Закупка и установка осветительного оборудования с заменой неэффективного на энергосберегающее, в том числе замена ламп накаливания на энергосберегающие, строительство, модернизация сетей уличного освещения, проектно-сметные работы, экспертиза проектно-сметной документации
B160: Всего, из них | C160: =SUM(C161:C162) -> 2556.2 | D160: =SUM(D161:D162) -> 1136.2 | E160: =SUM(E161:E162) -> 1420 | F160: 0 | G160: 0 | H160: 0 | I160: 0 | J160: 0 | K160: 28
B161: местный бюджет | C161: =SUM(D161:J161) -> 1968.2 | D161: 548.2 | E161: 1420 | F161: 0 | G161: 0 | H161: 0 | I161: =SUM(H161) -> 0 | J161: 0
B162: областной бюджет | C162: =SUM(D162:J162) -> 588 | D162: 588 | E162: 0 | F162: 0 | G162: 0 | H162: 0 | I162: 0 | J162: 0
A163: 3. Прочие нужды
B164: Всего по направлению «Прочие нужды», всего, в том числе: | C164: =SUM(D164:J164) -> 19081.75861 | D164: =SUM(D165:D166) -> 4991.9 | E164: =SUM(E165:E166) -> 1541.6 | F164: 1333.25861 | G164: 600 | H164: 2000 | I164: 2000 | J164: 6615 | K164: Х
B165: местный бюджет | C165: =SUM(D165:J165) -> 16081.75861 | D165: =SUM(D169+D174+D178+D181) -> 1991.9 | E165: =SUM(E169+E174+E178+E181) -> 1541.6 | F165: 1333.25861 | G165: 600 | H165: 2000 | I165: 2000 | J165: 6615
B166: областной бюджет | C166: =SUM(D166:J166) -> 3000 | D166: =SUM(D170+D175) -> 3000 | E166: =SUM(E170+E175) -> 0 | F166: 0 | G166: 0 | H166: 0 | I166: 0 | J166: 0
A167: Мероприятие 2 - Оснащение зданий (строений, сооружений), находящихся в муниципальной собственности, многоквартирных жилых домов, жилых помещений, квартир приборами учета используемых энергетических ресурсов, в том числе разработка проектно-сметной документации
B168: Всего, из них | C168: =SUM(D168:J168) -> 12357.90861 | D168: =SUM(D169:D170) -> 4200 | E168: 1100 | F168: 1250.40861 | G168: 500 | H168: 1000 | I168: 1000 | J168: 3307.5 | K168: 22,23,24,25,26
B169: местный бюджет | C169: =SUM(D169:J169) -> 9357.90861 | D169: 1200 | E169: 1100 | F169: 1250.40861 | G169: 500 | H169: 1000 | I169: =SUM(H169) -> 1000 | J169: 3307.5
B170: областной бюджет | C170: =SUM(D170:J170) -> 3000 | D170: 3000 | E170: =SUM(E171) -> 0 | F170: 0 | G170: 0 | H170: 0 | I170: 0 | J170: 0
B171: федеральный бюджет | C171: =SUM(D171:J171) -> 0 | D171: 0 | E171: 0 | F171: 0 | G171: =SUM(F171) -> 0 | H171: =SUM(G171) -> 0 | I171: =SUM(H171) -> 0 | J171: =SUM(I171) -> 0
A172: Мероприятие 3 - Закупка и установка осветительного оборудования с заменой неэффективного на энергосберегающее, в том числе замена ламп накаливания на энергосберегающие, строительство, модернизация сетей уличного освещения, проектно-сметные работы, экспертиза проектно-сметной документации
B173: Всего, из них | C173: =SUM(C174:C175) -> 5899.4 | D173: =SUM(D174:D175) -> 411.9 | E173: =SUM(E174:E175) -> 180 | F173: 0 | G173: 0 | H173: 1000 | I173: 1000 | J173: 3307.5 | K173: 28
B174: местный бюджет | C174: =SUM(D174:J174) -> 5899.4 | D174: 411.9 | E174: 180 | F174: 0 | G174: 0 | H174: 1000 | I174: =SUM(H174) -> 1000 | J174: 3307.5
B175: областной бюджет | C175: =SUM(D175:J175) -> 0 | D175: 0 | E175: 0 | F175: 0 | G175: 0 | H175: 0 | I175: 0 | J175: 0
A176: Мероприятие 4- Разработка схемы водоснабжения Североуральского городского округа
B177: Всего, из них | C177: =SUM(D177:J177) -> 380 | D177: =SUM(D178) -> 380 | E177: =SUM(E178) -> 0 | F177: 0 | G177: 0 | H177: 0 | I177: 0 | J177: 0 | K177: 30
B178: местный бюджет | C178: =SUM(D178:J178) -> 380 | D178: 380 | E178: 0 | F178: 0 | G178: =SUM(F178) -> 0 | H178: =SUM(G178) -> 0 | I178: =SUM(H178) -> 0 | J178: =SUM(I178) -> 0
A179: Мероприятие 9- Прочие мероприятия в области энергосбережения (разработка технических заданий, топливно-энерготехнического баланса и т.п.)
B180: Всего, из них | C180: =SUM(D180:J180) -> 444.45 | D180: =SUM(D181) -> 0 | E180: =SUM(E181) -> 261.6 | F180: 82.85 | G180: 100 | H180: 0 | I180: 0 | J180: 0 | K180: 35.36
B181: местный бюджет | C181: =SUM(D181:J181) -> 444.45 | D181: 0 | E181: 261.6 | F181: 82.85 | G181: 100 | H181: 0 | I181: =SUM(H181) -> 0 | J181: =SUM(I181) -> 0
A182: Подпрограмма 3: Развитие лесного хозяйства на территории Североуральского городского округа
B183: Всего по подпрограмме 1, всего, в том числе | C183: =SUM(C184:C184) -> 3728.2 | D183: =SUM(D184) -> 774.1 | E183: =SUM(E184) -> 881.1 | F183: 0 | G183: 573 | H183: 500 | I183: 500 | J183: 500 | K183: Х
B184: местный бюджет | C184: =SUM(D184:J184) -> 3728.2 | D184: =SUM(D196) -> 774.1 | E184: =SUM(E196) -> 881.1 | F184: 0 | G184: 573 | H184: 500 | I184: 500 | J184: 500
A185: 1. Капитальные вложения
B186: Всего по направлению «Капитальные вложения», всего, в том числе | C186: 0 | D186: 0 | E186: 0 | F186: 0 | G186: 0 | H186: 0 | I186: 0 | J186: 0 | K186: Х
B187: местный бюджет | C187: 0 | D187: 0 | E187: 0 | F187: 0 | G187: 0 | H187: 0 | I187: 0 | J187: 0
A188: 1.1. Бюджетные инвестиции в объекты капитального строительства
B189: Бюджетные инвестиции в объекты капитального строительства всего, в том числе: | C189: =SUM(C190) -> 0 | D189: =SUM(D190) -> 0 | E189: 0 | F189: 0 | G189: 0 | H189: 0 | I189: 0 | J189: 0 | K189: Х
B190: местный бюджет | C190: 0 | D190: 0 | E190: 0 | F190: 0 | G190: 0 | H190: 0 | I190: 0 | J190: 0
A191: 1.2. Иные капитальные вложения
B192: Всего, в том числе: | C192: =SUM(A194) -> 0 | D192: 0 | E192: 0 | F192: 0 | G192: 0 | H192: 0 | I192: 0 | J192: 0 | K192: Х
B193: местный бюджет | C193: 0 | D193: 0 | E193: 0 | F193: 0 | G193: 0 | H193: 0 | I193: 0 | J193: 0
A194: 3. Прочие нужды
B195: Всего, из них | C195: =SUM(C196:C196) -> 3728.2 | D195: 774.1 | E195: 881.1 | F195: 0 | G195: 573 | H195: 500 | I195: 500 | J195: 500 | K195: Х
B196: местный бюджет | C196: =SUM(D196:J196) -> 3728.2 | D196: =SUM(D199) -> 774.1 | E196: =SUM(E199) -> 881.1 | F196: 0 | G196: 573 | H196: 500 | I196: 500 | J196: 500
A197: Мероприятие 1- Развитие лесного хозяйства на территории Североуральского городского округа
B198: Всего, в том числе: | C198: =SUM(D198:J198) -> 3728.2 | D198: =SUM(D199) -> 774.1 | E198: =SUM(E199) -> 881.1 | F198: 0 | G198: 573 | H198: 500 | I198: 500 | J198: 500 | K198: 40
B199: местный бюджет | C199: =SUM(D199:J199) -> 3728.2 | D199: 774.1 | E199: 881.1 | F199: 0 | G199: 573 | H199: 500 | I199: =SUM(H199) -> 500 | J199: =SUM(I199) -> 500
A200: Подпрограмма 4 : Переселение граждан на территории Североуральского городского округа из аварийного жилищного фонда
B201: Всего по подпрограмме 4, всего, в том числе | C201: =SUM(C202:C204) -> 609748.3755 | D201: =SUM(D202:D204) -> 223750 | E201: 267296.1 | F201: 116065.2755 | G201: 2637 | H201: 0 | I201: 0 | J201: 0 | K201: Х
... 182 more rows

Sheet Лист2

Sheet Лист3
